[Event "55th Rubinstein Memorial-A 2019"]
[Site "Polanica-Zdroj"]
[Date "2019.08.17"]
[Round "1.23"]
[White "Walkusz, Witoslaw"]
[Black "Goraj, Barbara"]
[Result "0-1"]
[ECO "B10"]
[WhiteElo "2138"]
[BlackElo "1800"]
[Annotator "ChessBase"]
[PlyCount "86"]
[EventDate "2019.08.17"]
[EventType "swiss"]
[EventCountry "POL"]
[SourceTitle "playchess.com"]
[Source "ChessBase"]
[SourceQuality "1"]
[TimeControl "40/5400+30:1800+30"]

1. e4 c6 2. d3 d5 3. Nd2 g6 4. Ngf3 Bg7 5. Be2 Nd7 6. O-O Qc7 7. Re1 Ngf6 8. Bf1 dxe4 9. dxe4 Nc5 10. c3 O-O 11. Qc2 a5 12. a4 Rd8 13. h3 b6 14. Ra3 Ba6 15. Bxa6 Rxa6 16. c4 e5 17. Nb3 Ncxe4 18. Rxe4 Nxe4 19. Qxe4 Rd1+ 20. Ne1 Bf8 21. Ra1 Bb4 22. Bg5 Rxa1 23. Nxa1 Kg7 24. Nac2 f6 25. Bc1 Be7 26. Nd3 Ra8 27. f4 exf4 28. Nd4 Qd7 29. Nxf4 Bc5 30. Be3 Re8 31. Nde6+ Kf7 32. Nxc5 Qd1+ 33. Kf2 Rxe4 34. Nxe4 Qc2+ 35. Kf3 Qxb2 36. Nd6+ Kg8 37. Nc8 b5 38. axb5 cxb5 39. c5 Qc2 40. Na7 b4 41. c6 b3 42. Bb6 b2 43. c7 Qc3+ 0-1

[Event "55th Rubinstein Memorial-A 2019"]
[Site "Polanica-Zdroj"]
[Date "2019.08.17"]
[Round "1.24"]
[White "Kukorowski, Jan"]
[Black "Wisniewski, Michal"]
[Result "0-1"]
[ECO "B03"]
[WhiteElo "1796"]
[BlackElo "2130"]
[Annotator "ChessBase"]
[PlyCount "108"]
[EventDate "2019.08.17"]
[EventType "swiss"]
[EventCountry "POL"]
[SourceTitle "playchess.com"]
[Source "ChessBase"]
[SourceQuality "1"]
[TimeControl "40/5400+30:1800+30"]

1. e4 {[%emt 0:00:00]} Nf6 {[%emt 0:01:07]} 2. e5 {[%emt 0:00:00]} Nd5 {[%emt 0:00:04]} 3. d4 {[%emt 0:00:00]} d6 {[%emt 0:00:03]} 4. c4 {[%emt 0:00:00]} Nb6 {[%emt 0:00:03]} 5. exd6 {[%emt 0:00:00]} cxd6 {[%emt 0:00:16]} 6. Nc3 {[%emt 0:05:20]} g6 {[%emt 0:00:06]} 7. Nf3 {[%emt 0:01:04]} Bg7 {[%emt 0:00:05]} 8. Be3 {[%emt 0:00:42]} O-O {[%emt 0:00:34]} 9. Be2 {[%emt 0:01:10]} Nc6 {[%emt 0:01:37]} 10. O-O {[%emt 0:05:47]} Bg4 {[%emt 0:03:35]} 11. b3 {[%emt 0:05:10]} d5 {[%emt 0:00:25]} 12. c5 {[%emt 0:00:41]} Nc8 {[%emt 0:00:05]} 13. b4 {[%emt 0:05:34]} a6 {[%emt 0:10:48]} 14. h3 {[%emt 0:05:28]} Bxf3 {[%emt 0:00:35]} 15. Bxf3 {[%emt 0:00:05]} e6 {[%emt 0:00:20]} 16. Rb1 {[%emt 0:04:43]} N8e7 {[%emt 0:02:27]} 17. Na4 {[%emt 0:06:12]} Nf5 {[%emt 0:03:10]} 18. Nb6 {[%emt 0:09:55]} Ra7 {[%emt 0:02:02]} 19. Bg4 {[%emt 0:10:36]} Ncxd4 {[%emt 0:11:56]} 20. Bf4 {[%emt 0:02:51]} h5 {[%emt 0:02:58]} 21. Bxf5 {[%emt 0:01:10]} Nxf5 {[%emt 0:00:02]} 22. a4 {[%emt 0:02:29]} Re8 {[%emt 0:07:24]} 23. Qd3 {[%emt 0:03:01]} a5 {[%emt 0:06:07]} 24. b5 {[%emt 0:01:11]} Bd4 {[%emt 0:00:03]} 25. Bd6 {[%emt 0:01:54]} e5 {[%emt 0:05:12]} 26. Nxd5 {[%emt 0:01:06]} Nxd6 {[%emt 0:00:01]} 27. cxd6 {[%emt 0:03:22]} Qxd6 {[%emt 0:00:02]} 28. b6 {[%emt 0:00:49]} Qxd5 {[%emt 0:01:57]} 29. bxa7 {[%emt 0:01:30]} Bxf2+ {[%emt 0:00:16]} 30. Rxf2 {[%emt 0:00:02]} Qxd3 {[%emt 0:00:01]} 31. Rxb7 {[%emt 0:00:13]} Qd5 {[%emt 0:03:11]} 32. Rb8 {[%emt 0:02:13]} Rf8 {[%emt 0:00:24]} 33. a8=Q {[%emt 0:03:09]} Qxa8 {[%emt 0:00:07]} 34. Rxa8 {[%emt 0:00:02]} Rxa8 {[%emt 0:00:01]} 35. Rc2 {[%emt 0:02:01]} Kg7 {[%emt 0:01:13]} 36. Kf2 {[%emt 0:00:39]} Kf6 {[%emt 0:00:12]} 37. Ke3 {[%emt 0:00:38]} Ke6 {[%emt 0:00:57]} 38. Rc5 {[%emt 0:00:12]} Kf5 {[%emt 0:00:33]} 39. Rb5 {[%emt 0:00:52]} f6 {[%emt 0:00:08]} 40. Rc5 {[%emt 0:00:00]} g5 {[%emt 0:00:00]} 41. Rb5 {[%emt 0:00:52]} g4 {[%emt 0:00:12]} 42. hxg4+ {[%emt 0:00:16]} hxg4 {[%emt 0:00:06]} 43. Rc5 {[%emt 0:01:02]} Rb8 {[%emt 0:00:05]} 44. Rxa5 {[%emt 0:00:15]} Rb2 {[%emt 0:00:04]} 45. g3 {[%emt 0:00:13]} Rg2 {[%emt 0:00:08]} 46. Rb5 {[%emt 0:00:19]} Rxg3+ {[%emt 0:00:05]} 47. Ke2 {[%emt 0:00:08]} Ra3 {[%emt 0:00:05]} 48. a5 {[%emt 0:00:14]} Kf4 {[%emt 0:00:05]} 49. Rb6 {[%emt 0:00:07]} f5 {[%emt 0:00:08]} 50. a6 {[%emt 0:00:03]} Ra2+ {[%emt 0:00:07]} 51. Kf1 {[%emt 0:00:21]} e4 {[%emt 0:00:06]} 52. Rf6 {[%emt 0:00:23]} g3 {[%emt 0:00:08]} 53. Re6 {[%emt 0:00:33]} Kf3 {[%emt 0:00:05]} 54. Ke1 {[%emt 0:00:06]} g2 {[%emt 0:00:06]} 0-1

[Event "55th Rubinstein Memorial-A 2019"]
[Site "Polanica-Zdroj"]
[Date "2019.08.17"]
[Round "1.25"]
[White "Luba, Lukasz"]
[Black "Michalska, Aleksandra"]
[Result "1-0"]
[ECO "D05"]
[WhiteElo "2130"]
[BlackElo "1792"]
[Annotator "ChessBase"]
[PlyCount "79"]
[EventDate "2019.08.17"]
[EventType "swiss"]
[EventCountry "POL"]
[SourceTitle "playchess.com"]
[Source "ChessBase"]
[SourceQuality "1"]
[TimeControl "40/5400+30:1800+30"]

1. d4 {[%emt 0:00:00]} d5 {[%emt 0:00:00]} 2. e3 {[%emt 0:00:12]} Nf6 {[%emt 0:00:32]} 3. Bd3 {[%emt 0:00:11]} e6 {[%emt 0:01:03]} 4. Nd2 {[%emt 0:00:53]} c5 {[%emt 0:01:44]} 5. c3 {[%emt 0:00:15]} Nc6 {[%emt 0:01:16]} 6. f4 {[%emt 0:00:53]} Bd6 {[%emt 0:02:30]} 7. Qf3 {[%emt 0:00:08]} h5 {[%emt 0:04:02]} 8. Ne2 {[%emt 0:07:40]} a6 {[%emt 0:04:29]} 9. b3 {[%emt 0:00:39]} Rb8 {[%emt 0:04:42]} 10. Bb2 {[%emt 0:03:44]} b5 {[%emt 0:05:27]} 11. a3 {[%emt 0:17:19]} Bb7 {[%emt 0:04:11]} 12. b4 {[%emt 0:00:15]} c4 {[%emt 0:03:26]} 13. Bc2 {[%emt 0:00:24]} Qe7 {[%emt 0:02:04]} 14. O-O {[%emt 0:00:17]} h4 {[%emt 0:10:50]} 15. a4 {[%emt 0:01:37]} Kd7 {[%emt 0:04:00]} 16. Ra2 {[%emt 0:00:19]} Qd8 {[%emt 0:02:47]} 17. Bc1 {[%emt 0:02:17]} Qc7 {[%emt 0:04:10]} 18. Kh1 {[%emt 0:00:39]} Bxb4 {[%emt 0:10:40]} 19. cxb4 {[%emt 0:05:16]} Nxb4 {[%emt 0:04:51]} 20. Rb2 {[%emt 0:00:12]} Nxc2 {[%emt 0:04:52]} 21. axb5 {[%emt 0:01:25]} Na1 {[%emt 0:06:47]} 22. bxa6 {[%emt 0:09:25]} Bc6 {[%emt 0:01:15]} 23. Ra2 {[%emt 0:00:32]} Nb3 {[%emt 0:00:15]} 24. Nc3 {[%emt 0:01:15]} Rb6 {[%emt 0:01:15]} 25. Qh3 {[%emt 0:03:33]} Ra8 {[%emt 0:04:14]} 26. Nf3 {[%emt 0:00:14]} Rbxa6 {[%emt 0:00:33]} 27. Ne5+ {[%emt 0:00:07]} Ke7 {[%emt 0:00:15]} 28. Rxa6 {[%emt 0:01:07]} Rxa6 {[%emt 0:00:02]} 29. Qxh4 {[%emt 0:05:37]} Ra1 {[%emt 0:01:50]} 30. g4 {[%emt 0:00:03]} Be8 {[%emt 0:02:31]} 31. f5 {[%emt 0:07:14]} Qa5 {[%emt 0:03:40]} 32. g5 {[%emt 0:02:58]} exf5 {[%emt 0:03:34]} 33. gxf6+ {[%emt 0:02:06]} gxf6 {[%emt 0:00:12]} 34. Rxf5 {[%emt 0:00:07]} Rxc1+ {[%emt 0:00:05]} 35. Kg2 {[%emt 0:00:04]} Rc2+ {[%emt 0:01:07]} 36. Kg3 {[%emt 0:00:09]} Kd6 {[%emt 0:01:47]} 37. Nxc4+ {[%emt 0:00:41]} dxc4 {[%emt 0:00:07]} 38. Rxa5 {[%emt 0:00:28]} Nxa5 {[%emt 0:00:16]} 39. Qxf6+ {[%emt 0:00:06]} Kc7 {[%emt 0:00:24]} 40. Qf5 {[%emt 0:00:00]} 1-0

[Event "55th Rubinstein Memorial-A 2019"]
[Site "Polanica-Zdroj"]
[Date "2019.08.17"]
[Round "1.26"]
[White "Wysocki, Mateusz"]
[Black "Praczukowski, Stanislaw"]
[Result "1/2-1/2"]
[ECO "B53"]
[WhiteElo "1786"]
[BlackElo "2126"]
[Annotator "ChessBase"]
[PlyCount "76"]
[EventDate "2019.08.17"]
[EventType "swiss"]
[EventCountry "POL"]
[SourceTitle "playchess.com"]
[Source "ChessBase"]
[SourceQuality "1"]
[TimeControl "40/5400+30:1800+30"]

1. e4 {[%emt 0:00:00]} c5 {[%emt 0:00:00]} 2. Nf3 {[%emt 0:00:00]} d6 {[%emt 0:00:00]} 3. d4 {[%emt 0:00:40]} cxd4 {[%emt 0:00:00]} 4. Qxd4 {[%emt 0:00:12]} a6 {[%emt 0:02:55]} 5. c4 {[%emt 0:02:03]} Nc6 {[%emt 0:00:17]} 6. Qe3 {[%emt 0:00:37]} Bg4 {[%emt 0:00:44]} 7. Be2 {[%emt 0:01:54]} Nf6 {[%emt 0:00:35]} 8. O-O {[%emt 0:01:52]} g6 {[%emt 0:04:33]} 9. Nc3 {[%emt 0:06:54]} Bg7 {[%emt 0:00:32]} 10. Bd2 {[%emt 0:04:30]} O-O {[%emt 0:02:09]} 11. Rac1 {[%emt 0:03:50]} Nd7 {[%emt 0:03:56]} 12. b3 {[%emt 0:03:55]} Bxf3 {[%emt 0:07:42]} 13. Bxf3 {[%emt 0:00:26]} Nd4 {[%emt 0:11:10]} 14. Ne2 {[%emt 0:02:06]} Nxf3+ {[%emt 0:06:20]} 15. Qxf3 {[%emt 0:00:12]} b5 {[%emt 0:01:01]} 16. cxb5 {[%emt 0:05:44]} axb5 {[%emt 0:01:36]} 17. Rc2 {[%emt 0:00:22]} Qb6 {[%emt 0:02:46]} 18. Qe3 {[%emt 0:00:51]} Qb7 {[%emt 0:01:09]} 19. Rfc1 {[%emt 0:01:04]} Rfc8 {[%emt 0:01:32]} 20. Rxc8+ {[%emt 0:03:36]} Rxc8 {[%emt 0:00:07]} 21. Rxc8+ {[%emt 0:00:29]} Qxc8 {[%emt 0:00:02]} 22. Bc3 {[%emt 0:00:21]} Ne5 {[%emt 0:08:38]} 23. f3 {[%emt 0:17:50]} Qa6 {[%emt 0:01:59]} 24. Qd2 {[%emt 0:00:53]} h5 {[%emt 0:01:44]} 25. Bd4 {[%emt 0:10:08]} Qa3 {[%emt 0:03:34]} 26. Kf1 {[%emt 0:05:25]} b4 {[%emt 0:05:17]} 27. h3 {[%emt 0:07:30]} Qa6 {[%emt 0:02:01]} 28. Kg1 {[%emt 0:06:40]} Nd3 {[%emt 0:09:32]} 29. Bxg7 {[%emt 0:00:51]} Kxg7 {[%emt 0:00:01]} 30. Nd4 {[%emt 0:01:57]} Nc5 {[%emt 0:04:36]} 31. Kh2 {[%emt 0:03:10]} Qf1 {[%emt 0:08:18]} 32. Nc6 {[%emt 0:02:46]} Nd3 {[%emt 0:03:14]} 33. Nxe7 {[%emt 0:01:02]} h4 {[%emt 0:03:07]} 34. Nf5+ {[%emt 0:02:24]} gxf5 {[%emt 0:02:14]} 35. Qg5+ {[%emt 0:00:07]} Kf8 {[%emt 0:00:08]} 36. Qd8+ {[%emt 0:00:02]} Kg7 {[%emt 0:00:08]} 37. Qg5+ {[%emt 0:00:04]} Kf8 {[%emt 0:00:05]} 38. Qd8+ {[%emt 0:00:04]} Kg7 {[%emt 0:00:04]} 1/2-1/2

[Event "55th Rubinstein Memorial-A 2019"]
[Site "Polanica-Zdroj"]
[Date "2019.08.17"]
[Round "1.27"]
[White "Slomczewski, Michal"]
[Black "Kokurewicz, Konrad"]
[Result "1-0"]
[ECO "A06"]
[WhiteElo "2115"]
[BlackElo "1781"]
[Annotator "ChessBase"]
[PlyCount "43"]
[EventDate "2019.08.17"]
[EventType "swiss"]
[EventCountry "POL"]
[SourceTitle "playchess.com"]
[Source "ChessBase"]
[SourceQuality "1"]
[TimeControl "40/5400+30:1800+30"]

1. Nf3 {[%emt 0:00:00]} d5 {[%emt 0:03:42]} 2. c4 {[%emt 0:00:00]} Nf6 {[%emt 0:04:38]} 3. cxd5 {[%emt 0:01:03]} Nxd5 {[%emt 0:00:18]} 4. e4 {[%emt 0:07:56]} Nf6 {[%emt 0:02:29]} 5. Nc3 {[%emt 0:00:26]} c5 {[%emt 0:09:52]} 6. Bc4 {[%emt 0:16:11]} e6 {[%emt 0:23:32]} 7. d4 {[%emt 0:21:21]} cxd4 {[%emt 0:02:03]} 8. Nxd4 {[%emt 0:00:56]} Qc7 {[%emt 0:09:31]} 9. Qe2 {[%emt 0:02:16]} Bb4 {[%emt 0:02:51]} 10. O-O {[%emt 0:02:00]} Bxc3 {[%emt 0:01:40]} 11. bxc3 {[%emt 0:00:02]} O-O {[%emt 0:00:15]} 12. Nb5 {[%emt 0:20:29]} Qc6 {[%emt 0:06:06]} 13. Ba3 {[%emt 0:01:52]} Nxe4 {[%emt 0:10:54]} 14. Bxf8 {[%emt 0:00:32]} Kxf8 {[%emt 0:00:21]} 15. Nd4 {[%emt 0:03:30]} Qc5 {[%emt 0:12:59]} 16. Qxe4 {[%emt 0:00:12]} Qxc4 {[%emt 0:00:20]} 17. Qxh7 {[%emt 0:00:12]} b6 {[%emt 0:02:23]} 18. Rfe1 {[%emt 0:03:41]} Bd7 {[%emt 0:01:57]} 19. Qh8+ {[%emt 0:00:36]} Ke7 {[%emt 0:00:11]} 20. Nf5+ {[%emt 0:00:11]} Kf6 {[%emt 0:01:12]} 21. Qxg7+ {[%emt 0:00:08]} Kxf5 {[%emt 0:00:24]} 22. Re5+ {[%emt 0:00:08]} 1-0

[Event "55th Rubinstein Memorial-A 2019"]
[Site "Polanica-Zdroj"]
[Date "2019.08.18"]
[Round "2.1"]
[White "Czarniecka, Aleksandra"]
[Black "Warakomski, Tomasz"]
[Result "0-1"]
[ECO "B59"]
[WhiteElo "2042"]
[BlackElo "2497"]
[Annotator "ChessBase"]
[PlyCount "80"]
[EventDate "2019.08.17"]
[EventType "swiss"]
[EventCountry "POL"]
[SourceTitle "playchess.com"]
[Source "ChessBase"]
[SourceQuality "1"]
[TimeControl "40/5400+30:1800+30"]

1. e4 {[%emt 0:00:00]} c5 {[%emt 0:00:00]} 2. Nf3 {[%emt 0:00:00]} Nc6 {[%emt 0:00:00]} 3. d4 {[%emt 0:00:00]} cxd4 {[%emt 0:00:00]} 4. Nxd4 {[%emt 0:00:00]} Nf6 {[%emt 0:00:00]} 5. Nc3 {[%emt 0:00:10]} d6 {[%emt 0:00:05]} 6. Be2 {[%emt 0:01:36]} e5 {[%emt 0:00:06]} 7. Nb3 {[%emt 0:03:25]} Be7 {[%emt 0:00:18]} 8. O-O {[%emt 0:01:35]} O-O {[%emt 0:00:04]} 9. f4 {[%emt 0:03:34]} a5 {[%emt 0:00:59]} 10. a4 {[%emt 0:01:19]} Nb4 {[%emt 0:00:45]} 11. Kh1 {[%emt 0:08:30]} b6 {[%emt 0:01:41]} 12. fxe5 {[%emt 0:06:43]} dxe5 {[%emt 0:00:07]} 13. Bg5 Be6 {[%emt 0:03:12]} 14. Bxf6 {[%emt 0:08:08]} Bxf6 {[%emt 0:00:09]} 15. Nb5 {[%emt 0:01:45]} Qxd1 {[%emt 0:07:03]} 16. Bxd1 {[%emt 0:02:34]} Rad8 {[%emt 0:00:05]} 17. c3 {[%emt 0:10:33]} Nd3 {[%emt 0:03:54]} 18. Rb1 {[%emt 0:02:02]} Rd7 {[%emt 0:01:16]} 19. Bc2 {[%emt 0:02:24]} Rfd8 {[%emt 0:00:39]} 20. h3 {[%emt 0:03:46]} Bg5 {[%emt 0:02:38]} 21. Kh2 {[%emt 0:01:35]} h5 {[%emt 0:01:20]} 22. Rf3 {[%emt 0:06:41]} h4 {[%emt 0:03:24]} 23. Kg1 {[%emt 0:04:23]} Be7 {[%emt 0:25:02]} 24. Kh2 {[%emt 0:11:58]} Nf4 {[%emt 0:02:59]} 25. N3d4 {[%emt 0:06:25]} exd4 {[%emt 0:01:14]} 26. Rxf4 {[%emt 0:00:12]} dxc3 {[%emt 0:10:37]} 27. bxc3 {[%emt 0:00:13]} Bf6 {[%emt 0:00:17]} 28. Rff1 {[%emt 0:04:17]} Rd2 {[%emt 0:01:42]} 29. Bb3 {[%emt 0:01:15]} Be5+ {[%emt 0:00:21]} 30. Kg1 {[%emt 0:01:13]} Bxb3 {[%emt 0:00:12]} 31. Rxb3 {[%emt 0:00:25]} Rc2 {[%emt 0:02:28]} 32. Na3 {[%emt 0:03:27]} Rxc3 {[%emt 0:00:05]} 33. Rxc3 {[%emt 0:00:04]} Bxc3 {[%emt 0:00:04]} 34. Nb5 {[%emt 0:00:46]} Bd4+ {[%emt 0:01:23]} 35. Kh1 {[%emt 0:01:03]} Be5 {[%emt 0:00:05]} 36. Rc1 {[%emt 0:01:09]} Rd3 {[%emt 0:05:38]} 37. Kg1 {[%emt 0:02:11]} Re3 {[%emt 0:00:09]} 38. Kf2 {[%emt 0:01:36]} Rxe4 {[%emt 0:00:06]} 39. Rc6 {[%emt 0:00:54]} Rxa4 {[%emt 0:00:17]} 40. Rxb6 {[%emt 0:00:00]} Rb4 {[%emt 0:00:00]} 0-1

[Event "55th Rubinstein Memorial-A 2019"]
[Site "Polanica-Zdroj"]
[Date "2019.08.18"]
[Round "2.2"]
[White "Shishkin, Vadim"]
[Black "Rosicki, Marcin"]
[Result "1-0"]
[ECO "E73"]
[WhiteElo "2445"]
[BlackElo "2042"]
[Annotator "NA"]
[PlyCount "59"]
[EventDate "2019.08.17"]
[EventType "swiss"]
[EventCountry "POL"]
[SourceTitle "playchess.com"]
[Source "ChessBase"]
[SourceQuality "1"]
[TimeControl "40/5400+30:1800+30"]

1. d4 {[%emt 0:00:00]} Nf6 {[%emt 0:06:36]} 2. c4 {[%emt 0:00:00]} g6 {[%emt 0:00:07]} 3. Nc3 {[%emt 0:00:00]} Bg7 {[%emt 0:00:23]} 4. e4 {[%emt 0:00:00]} d6 {[%emt 0:00:04]} 5. Be2 {[%emt 0:00:06]} O-O {[%emt 0:00:08]} 6. Be3 {[%emt 0:00:05]} e5 {[%emt 0:00:18]} 7. d5 {[%emt 0:00:07]} Nbd7 {[%emt 0:01:50]} 8. g4 {[%emt 0:00:09]} Nc5 {[%emt 0:00:55]} 9. f3 {[%emt 0:01:14]} a5 {[%emt 0:00:42]} 10. h4 {[%emt 0:00:06]} h5 {[%emt 0:03:55]} 11. g5 {[%emt 0:00:06]} Ne8 {[%emt 0:01:07]} 12. Nh3 {[%emt 0:00:55]} Bd7 {[%emt 0:01:26]} 13. b3 {[%emt 0:24:32]} c6 {[%emt 0:19:08]} 14. Qd2 {[%emt 0:00:05]} Na6 {[%emt 0:09:00]} 15. Kf2 {[%emt 0:15:21]} c5 {[%emt 0:06:10]} 16. Kg2 {[%emt 0:00:11]} Rb8 {[%emt 0:00:57]} 17. a3 $14 {[%emt 0:23:01]} Qc7 {[%emt 0:11:04]} 18. Nf2 {[%emt 0:02:21]} Bh8 {[%emt 0:11:12]} 19. Rab1 {[%emt 0:00:33]} Ra8 {[%emt 0:00:32]} 20. Nd3 {[%emt 0:01:12]} Rc8 {[%emt 0:02:31]} 21. Qe1 {[%emt 0:07:36]} b6 {[%emt 0:02:42]} 22. Rf1 {[%emt 0:01:59]} Qd8 {[%emt 0:00:57]} 23. f4 {[%emt 0:13:07]} f5 {[%emt 0:06:40]} 24. gxf6 {[%emt 0:01:13]} Bxf6 {[%emt 0:00:35]} 25. fxe5 {[%emt 0:00:19]} dxe5 {[%emt 0:00:42]} 26. Qg3 {[%emt 0:00:59]} Qe7 {[%emt 0:05:36]} 27. Bg5 {[%emt 0:01:22]} Nd6 {[%emt 0:01:45]} 28. Bxf6 {[%emt 0:01:25]} Rxf6 {[%emt 0:00:03]} 29. Rxf6 {[%emt 0:00:07]} Qxf6 {[%emt 0:00:04]} 30. Rf1 1-0

[Event "55th Rubinstein Memorial-A 2019"]
[Site "Polanica-Zdroj"]
[Date "2019.08.18"]
[Round "2.3"]
[White "Wnek, Filip"]
[Black "Cukrowski, Filip"]
[Result "0-1"]
[ECO "B90"]
[WhiteElo "2021"]
[BlackElo "2424"]
[Annotator "NA"]
[PlyCount "56"]
[EventDate "2019.08.17"]
[EventType "swiss"]
[EventCountry "POL"]
[SourceTitle "playchess.com"]
[Source "ChessBase"]
[SourceQuality "1"]
[TimeControl "40/5400+30:1800+30"]

1. e4 {[%emt 0:00:00]} c5 {[%emt 0:09:53]} 2. Nf3 {[%emt 0:01:03]} d6 {[%emt 0:00:06]} 3. d4 {[%emt 0:01:24]} cxd4 {[%emt 0:00:37]} 4. Nxd4 {[%emt 0:04:22]} Nf6 {[%emt 0:00:07]} 5. Nc3 {[%emt 0:00:13]} a6 {[%emt 0:00:04]} 6. f3 {[%emt 0:03:07]} e5 {[%emt 0:00:06]} 7. Nb3 {[%emt 0:00:06]} Be7 {[%emt 0:00:03]} 8. Be3 {[%emt 0:00:41]} O-O {[%emt 0:00:07]} 9. Qd2 {[%emt 0:00:11]} Be6 {[%emt 0:00:04]} 10. O-O-O {[%emt 0:00:32]} a5 {[%emt 0:00:03]} 11. a4 {[%emt 0:00:33]} Nc6 {[%emt 0:00:42]} 12. g4 {[%emt 0:00:09]} Nb4 {[%emt 0:01:15]} 13. g5 {[%emt 0:00:13]} Ne8 {[%emt 0:03:06]} 14. h4 {[%emt 0:00:27]} Rc8 {[%emt 0:06:41]} 15. Kb1 {[%emt 0:00:09]} f5 {[%emt 0:37:59]} 16. Qf2 {[%emt 0:23:10]} Bxb3 {[%emt 0:12:24]} (16... fxe4 $11 {keeps the balance.} 17. Bb6 Nc7) 17. cxb3 {[%emt 0:00:42]} Qd7 $18 {[%emt 0:06:52]} 18. Bc5 {[%emt 0:18:39]} Nc7 {[%emt 0:05:58]} 19. Bc4+ {[%emt 0:04:06]} Kh8 {[%emt 0:00:16]} 20. Nb5 {[%emt 0:07:36]} Nxb5 {[%emt 0:01:33]} 21. Bxb5 {[%emt 0:00:32]} Nc6 {[%emt 0:00:31]} 22. Qd2 {[%emt 0:04:12]} fxe4 {[%emt 0:00:07]} 23. fxe4 {[%emt 0:00:52]} Qg4 {[%emt 0:00:05]} 24. Be3 {[%emt 0:04:14]} Nb4 {[%emt 0:02:27]} 25. Bd3 {[%emt 0:02:24]} Qe6 {[%emt 0:00:04]} 26. Rc1 {[%emt 0:16:15]} Qxb3 {[%emt 0:00:33]} 27. Rc3 {[%emt 0:00:19]} Qa2+ {[%emt 0:00:30]} 28. Kc1 {[%emt 0:00:06]} Qa1+ {[%emt 0:00:03]} 0-1

[Event "55th Rubinstein Memorial-A 2019"]
[Site "Polanica-Zdroj"]
[Date "2019.08.18"]
[Round "2.4"]
[White "Majek, Kacper"]
[Black "Mikhaletz, Lubomir"]
[Result "1-0"]
[ECO "B00"]
[WhiteElo "1984"]
[BlackElo "2412"]
[Annotator "NA"]
[PlyCount "118"]
[EventDate "2019.08.17"]
[EventType "swiss"]
[EventCountry "POL"]
[SourceTitle "playchess.com"]
[Source "ChessBase"]
[SourceQuality "1"]
[TimeControl "40/5400+30:1800+30"]

1. e4 {[%emt 0:00:00]} Nc6 {[%emt 0:00:00]} 2. d4 {[%emt 0:00:00]} d5 {[%emt 0:00:00]} 3. e5 {[%emt 0:00:32]} f6 {[%emt 0:00:00]} 4. Nf3 {[%emt 0:00:19]} Bg4 {[%emt 0:01:19]} 5. Be2 {[%emt 0:00:42]} Bxf3 {[%emt 0:02:15]} 6. Bxf3 {[%emt 0:00:06]} fxe5 {[%emt 0:01:17]} 7. dxe5 {[%emt 0:00:06]} e6 {[%emt 0:00:12]} 8. O-O {[%emt 0:01:29]} Nge7 {[%emt 0:05:45]} 9. c4 {[%emt 0:04:14]} dxc4 {[%emt 0:02:31]} 10. Qa4 {[%emt 0:03:38]} Qd4 {[%emt 0:03:51]} 11. Rd1 {[%emt 0:06:24]} Qxe5 {[%emt 0:01:05]} 12. Na3 {[%emt 0:02:38]} Rd8 {[%emt 0:01:25]} 13. Be3 {[%emt 0:00:59]} Qf5 {[%emt 0:33:54]} 14. Nb5 {[%emt 0:02:22]} Kf7 {[%emt 0:10:08]} 15. Nxc7 {[%emt 0:11:05]} Nd5 {[%emt 0:03:34]} 16. Nxd5 {[%emt 0:00:37]} exd5 {[%emt 0:01:07]} 17. Qb5 {[%emt 0:00:11] Double Attack} Nb4 $18 {[%emt 0:01:25]} 18. Qxb7+ {[%emt 0:27:07]} Qd7 {[%emt 0:06:51]} 19. Qxa7 {[%emt 0:10:01]} Qxa7 {[%emt 0:01:02]} 20. Bxa7 {[%emt 0:00:02]} Be7 {[%emt 0:00:35]} 21. Bd4 {[%emt 0:00:37]} Bf6 {[%emt 0:01:36]} 22. Bxf6 {[%emt 0:07:49]} Kxf6 {[%emt 0:00:18]} 23. a3 {[%emt 0:00:34]} Nd3 {[%emt 0:01:13]} 24. b3 {[%emt 0:00:47]} Ke5 {[%emt 0:01:15]} 25. Ra2 {[%emt 0:01:11]} Kd4 {[%emt 0:02:08]} 26. Be2 {[%emt 0:01:07]} Rb8 {[%emt 0:01:16]} 27. b4 {[%emt 0:00:58]} Ra8 {[%emt 0:06:38]} 28. a4 {[%emt 0:00:05]} Rhe8 {[%emt 0:01:51]} 29. Bxd3 {[%emt 0:00:38]} cxd3 {[%emt 0:00:12]} 30. Ra3 {[%emt 0:00:30]} Kc4 {[%emt 0:00:37]} 31. Raxd3 {[%emt 0:00:18]} Re1+ {[%emt 0:00:10]} 32. Rxe1 {[%emt 0:00:06]} Kxd3 {[%emt 0:00:08]} 33. Ra1 {[%emt 0:03:13]} Kc3 {[%emt 0:00:13]} 34. b5 {[%emt 0:11:12]} Kb2 {[%emt 0:00:34]} 35. Rd1 {[%emt 0:00:01]} Rxa4 {[%emt 0:00:16]} 36. Kf1 {[%emt 0:00:11]} d4 {[%emt 0:01:53]} 37. Rd3 {[%emt 0:00:47]} Rb4 {[%emt 0:02:40]} 38. Ke2 {[%emt 0:00:11]} Rxb5 {[%emt 0:00:51]} 39. Rxd4 {[%emt 0:00:08]} Kc3 {[%emt 0:00:06]} 40. Rd7 {[%emt 0:00:00]} Rg5 {[%emt 0:00:00]} 41. g3 {[%emt 0:00:55]} Kc4 {[%emt 0:02:07]} 42. Ke3 {[%emt 0:03:59]} Kc5 {[%emt 0:00:53]} 43. f4 {[%emt 0:01:42]} Kc6 {[%emt 0:00:24]} 44. Ra7 {[%emt 0:00:51]} Rh5 {[%emt 0:00:47]} 45. Rxg7 {[%emt 0:04:46]} Rxh2 {[%emt 0:00:17]} 46. Rg4 {[%emt 0:05:34]} Ra2 {[%emt 0:01:23]} 47. Ke4 {[%emt 0:00:39]} Ra7 {[%emt 0:05:44]} 48. Ke5 {[%emt 0:00:28]} Re7+ {[%emt 0:06:10]} 49. Kf6 {[%emt 0:00:32]} Kd6 {[%emt 0:00:01]} 50. Rg7 {[%emt 0:01:26]} Re3 {[%emt 0:00:30]} 51. g4 {[%emt 0:01:27]} Rh3 {[%emt 0:04:18]} 52. g5 {[%emt 0:03:21]} Rh4 {[%emt 0:02:50]} 53. f5 {[%emt 0:00:52]} Rh1 {[%emt 0:00:50]} 54. Kf7 {[%emt 0:02:15]} Ke5 {[%emt 0:12:35]} 55. f6 {[%emt 0:00:09]} h6 {[%emt 0:00:48]} 56. gxh6 {[%emt 0:03:50]} Rxh6 {[%emt 0:00:46]} 57. Rg6 {[%emt 0:00:47]} Rh8 {[%emt 0:03:46]} 58. Kg7 {[%emt 0:00:28]} Kf5 {[%emt 0:00:29]} 59. f7 {[%emt 0:00:10]} Ke5 1-0